Cogmind - Beta 16 @@@ ROGUE MODE // 2026.01.17 @ 14:02:08 Player: celerysam Result: Destroyed by IV-DH7(R) with Subdweller Laser Performance ------------- Evolutions (0) 0 Regions Visited (2) 400 Robots Destroyed (25) 125 Value Destroyed (628) 628 Prototype IDs (0) 0 Alien Tech Used (0) 0 Bonus (0) 0 TOTAL SCORE: 1153 Bonus ------- None Cogmind --------- Core Integrity 0/250 Matter 252/300 Energy 198/200 System Corruption 2% Temperature Cool (6) Movement Rolling (105) Location -10/Subcaves Parts ------- > --- POWER (1) -------- Subdweller Power Source > --- PROPULSION (2) --- Compact Wheel Subdweller Monowheel > --- UTILITY (2) ------ Small Storage Unit Core Shielding > --- WEAPON (2) ------- (None) > --- INVENTORY (8) ---- Wheel Structural Scanner Propulsion Shielding Makeshift Light Armor Plating Scrap Shield Datajack Peak State ------------ > --- POWER ------------ Subdweller Power Source > --- PROPULSION ------- Wheel Compact Wheel > --- UTILITY ---------- Small Storage Unit Core Shielding > --- WEAPON ----------- Heavy Battle Rifle Light Cannon > --- INVENTORY -------- Wheel Subdweller Monowheel Structural Scanner Propulsion Shielding Scrap Shield EM Pulse Gun Datajack [Rating: 12] Favorites ----------- Power Ion Engine Engine Ion Engine Propulsion Aluminum Leg Treads Light Treads Leg Aluminum Leg Wheel Wheel Utility Small Storage Unit Storage Small Storage Unit Protection Core Shielding Weapon Light Cannon Energy Gun EM Pulse Gun Ballistic Gun Assault Rifle Ballistic Cannon Light Cannon Build | -11 -10 -10 ------- Run | Yrd Mat Sub Slots Evolved . | . . . Power . | . . . Propulsion . | . . . Utility . | . . . Weapon . | . . . Parts Attached 21 | 6 12 3 Power 3 | 1 1 1 Engine 3 | 1 1 1 Core . | . . . Reactor . | . . . Propulsion 9 | 2 6 1 Treads 2 | . 2 . Leg 3 | 2 1 . Wheel 4 | . 3 1 Hover . | . . . Flight . | . . . Utility 4 | 1 3 . Device . | . . . Storage 2 | 1 1 . Processor . | . . . Hackware . | . . . Protection 2 | . 2 . Artifact . | . . . Weapon 5 | 2 2 1 Energy Gun 1 | . 1 . Energy Cannon . | . . . Ballistic Gun 3 | 2 . 1 Ballistic Cannon 1 | . 1 . Launcher . | . . . Special Weapon . | . . . Impact Weapon . | . . . Slashing Weapon . | . . . Piercing Weapon . | . . . Special Melee Weapon . | . . . Unidentified Prototypes . | . . . Parts Lost 9 | . 3 6 Power 2 | . 1 1 Propulsion 2 | . . 2 Utility 1 | . 1 . Weapon 4 | . 1 3 Highest Loss Streak 5 | . 1 5 To Critical Strikes . | . . . Average Backups 7 | 4 7 6 Power . | . . . Propulsion 2 | 3 3 1 Utility 2 | . 2 3 Weapon . | . . . Tool/Special . | . . . Unused Backups 6 | . . 6 Power . | . . . Propulsion 1 | . . 1 Utility 4 | . . 4 Weapon . | . . . Tool/Special 1 | . . 1 Average Slot Usage (%) 98 | . 99 96 Engine 13 | . 14 13 Treads 5 | . 8 . Leg 11 | . 17 . Wheel 11 | . 2 27 Storage 16 | . 17 14 Protection 11 | . 9 14 Energy Gun 5 | . 7 1 Ballistic Gun 10 | . 10 11 Ballistic Cannon 11 | . 10 12 Peak Build Rating 12 | 6 7 12 Average Rating 7 | 3 6 9 On Entrance 4 | . 6 7 Avg Prop Armor Cover (%) 11 | . 11 . Naked Turns . | . . . Heaviest Build 18 | 12 18 18 Greatest Support 40 | 20 40 36 Greatest Overweight (x) 1 | . 1 1 Average Overweight (x) . | . . . Largest Inventory Capacity 8 | 8 8 8 Average Capacity 7 | 6 8 8 Most Carried 8 | 6 8 8 Average Carried 7 | 4 7 7 Final Capacity 8 | 8 8 8 Final Carried 8 | 6 8 7 Class Distribution -------------------- 100% | Mutant Dominant Class ---------------- Mutant | -10/Materials Mutant | -10/Subcaves Resources | -11 -10 -10 ----------- Run | Yrd Mat Sub Matter Collected 929 | 260 519 150 Remotely . | . . . Salvage Created 706 | . 551 155 Parts 41 | . 35 6 Haulers Intercepted . | . . . Recyclers Shooed 1 | . 1 . Parts Field Recycled . | . . . Retrieved Matter . | . . . Parts Self-Destructed 2 | . . 2 Prevented . | . . . Parts Restored . | . . . Kills | -11 -10 -10 ------- Run | Yrd Mat Sub Combat Hostiles Destroyed 23 | . 18 5 Guns 18 | . 14 4 Cannons 5 | . 4 1 Classes Destroyed 5 | . 4 1 Recycler 1 | . 1 . Watcher 1 | . 1 . Swarmer 9 | . 9 . Grunt 9 | . 9 . Subdweller 5 | . . 5 Best Kill Streak 5 | . 5 2 Combat Bots Only 5 | . 5 2 Max Kills in Single Turn 2 | . 2 1 Gunslinging 1 | . 1 . Exploded . | . . . Melee . | . . . Uniques/NPCs Destroyed . | . . . Combat | -11 -10 -10 -------- Run | Yrd Mat Sub Hostile Shots Fired 133 | . 80 53 Missed 37 | . 19 18 Hits 96 | . 61 35 Projectile 96 | . 61 35 Damage Taken 1314 | . 594 720 Core 264 | . 92 172 Absorbed by Shields . | . . . Redirected to Shielding 38 | . . 38 Core Remaining (%) 100 | 100 . . Volleys Fired 91 | . 62 29 Largest 2 | . 2 2 Hottest 70 | . 70 70 Shots Fired 176 | . 119 57 Gun 109 | . 81 28 Cannon 67 | . 38 29 Launcher . | . . . Special . | . . . Kinetic 154 | . 106 48 Thermal . | . . . Explosive . | . . . Electromagnetic 22 | . 13 9 Robot Hit Streak 7 | . 5 7 Robot Miss Streak 8 | . 8 3 Penetration Max . | . . . Secondary Targets 1 | . 1 . Max Gunslinging Chain 1 | . 1 . Shots Hit Robots 82 | . 50 32 Core Hits 37 | . 27 10 Critical Kills . | . . . Critical Parts Destroyed . | . . . Critical Strikes 1 | . 1 . Blast 1 | . 1 . Melee Attacks . | . . . Impact . | . . . Slashing . | . . . Piercing . | . . . Sneak Attacks . | . . . Combat Hostiles . | . . . Follow-up Attacks . | . . . Damage Inflicted 1377 | . 755 622 Guns 841 | . 527 314 Cannons 533 | . 225 308 Explosions . | . . . Melee . | . . . Ramming 3 | . 3 . Kinetic 1223 | . 654 569 Thermal . | . . . Explosive . | . . . Electromagnetic 151 | . 98 53 Impact . | . . . Slashing . | . . . Piercing . | . . . Highest Corruption 2 | . 2 2 Average Corruption 2 | . 2 2 Corruption Purged . | . . . Corruption Blocked . | . . . Effects 9 | . 2 7 Message Errors 1 | . . 1 Matter Fused 1 | . . 1 Heat Flow Errors 4 | . 1 3 Energy Discharges 1 | . . 1 Data Loss (minor) 1 | . . 1 Data Loss (major) 1 | . 1 . Overload Shots . | . . . Overflow Damage 3 | . 3 . Projectiles 3 | . 3 . Explosions . | . . . Melee . | . . . Knockbacks 9 | . 3 6 Impact . | . . . Kinetic 9 | . 3 6 Secondary . | . . . Self-Inflicted Damage . | . . . Shots . | . . . Rammed . | . . . Targets Rammed 1 | . 1 . Kicked 1 | . 1 . Crushed . | . . . Highest Temperature 243 | . 243 242 Average Temperature 55 | . 44 107 Received Heat Transfer 291 | . 144 147 Siege Activations . | . . . Martial Activations . | . . . Shielding Activations . | . . . Robots Disrupted . | . . . Combat Hostiles . | . . . Robots Corrupted . | . . . Combat Hostiles . | . . . Parts Fried . | . . . Impact Corruptions . | . . . Robots Melted . | . . . Combat Hostiles . | . . . Parts Melted . | . . . Heat Transferred . | . . . Parts Sabotaged . | . . . Parts Stolen . | . . . Parts Stripped . | . . . Power Chain Reactions . | . . . Alert | -11 -10 -10 ------- Run | Yrd Mat Sub Maximum Alert Level . | . . . Low Security (%) 100 | 100 100 . Level 1 . | . . . Level 2 . | . . . Level 3 . | . . . Level 4 . | . . . Level 5 . | . . . High Security . | . . . Max Security . | . . . Peak Influence 173 | . 173 . Initial . | . . . Average 88 | . 93 . Influence Increases 478 | . 478 . Destroy 0b10 Robot/C 360 | . 360 . Destroy 0b10 Robot/NC 10 | . 10 . Destroy Leader 92 | . 92 . Disable Machine 15 | . 15 . Destroy Structure 1 | . 1 . Influence Decreases 478 | . 458 20 Entered New Map 10 | . . 10 Time Decay 438 | . 428 10 Lost Part 30 | . 30 . Squads Dispatched 6 | . 6 . Investigation 2 | . 2 . Extermination . | . . . Reinforcement 4 | . 4 . Assault . | . . . Garrison . | . . . Intercept . | . . . Searches Triggered . | . . . Construction Impeded . | . . . Haulers Reinforced . | . . . Active Scanning Responses . | . . . Cargo Convoy Interrupts . | . . . Stealth | -11 -10 -10 --------- Run | Yrd Mat Sub Distress Signals 5 | . 5 . Communications Jammed . | . . . Distress Signals . | . . . Times Spotted 33 | . 26 7 Peak Tracking Total 7 | . 7 2 Tactical Retreats . | . . . Traps | -11 -10 -10 ------- Run | Yrd Mat Sub Traps Triggered 2 | . 2 . Indirectly . | . . . Trap Hack Attempts . | . . . Triggered . | . . . Disarmed . | . . . Reprogrammed . | . . . Reused . | . . . Traps Extracted . | . . . Installed . | . . . Triggered . | . . . Machines | -11 -10 -10 ---------- Run | Yrd Mat Sub Machines Disabled 1 | . 1 . Max in Single Turn 1 | . 1 . Machines Repaired . | . . . Machines Dismantled . | . . . Machines Sabotaged . | . . . Overloaded Fab Kills . | . . . Hacking | -11 -10 -10 --------- Run | Yrd Mat Sub Machines Accessed 2 | . 1 1 Terminals . | . . . Fabricators . | . . . Repair Stations . | . . . Recycling Units 1 | . 1 . Scanalyzers . | . . . Garrison Access . | . . . Total Hacks 5 | . 1 4 Successful 5 | . 1 4 Failed . | . . . Catastrophic . | . . . Database Lockouts . | . . . Manual . | . . . Terminals . | . . . Fabricators . | . . . Repair Stations . | . . . Recycling Units 1 | . 1 . Scanalyzers . | . . . Garrison Access . | . . . Terminal Hacks 4 | . . 4 Record 4 | . . 4 Fabricator Hacks . | . . . Repair Station Hacks . | . . . Recycling Unit Hacks 1 | . 1 . Report Inventory 1 | . 1 . Scanalyzer . | . . . Garrison Access Hacks . | . . . Unauthorized Hacks . | . . . Terminals . | . . . Fabricators . | . . . Repair Stations . | . . . Recycling Units . | . . . Scanalyzers . | . . . Garrison Access . | . . . Data Cores Recovered . | . . . Used . | . . . Hacking Detections 1 | . 1 . Full Trace Events . | . . . Feedback Events . | . . . Feedback Blocked . | . . . Robot Schematics Acquired . | . . . Robots Built . | . . . Authchips . | . . . Time . | . . . Total Robot Build Rating . | . . . Part Schematics Acquired . | . . . Parts Built . | . . . Authchips . | . . . Time . | . . . Total Part Build Rating . | . . . Part Studies Acquired . | . . . Parts Repaired . | . . . Time . | . . . Parts Recycled . | . . . Recycled Matter . | . . . Retrieved Matter . | . . . Retrieved Components . | . . . Parts Scanalyzed . | . . . Part Schematics Acquired . | . . . Parts Damaged . | . . . Bothacking | -11 -10 -10 ------------ Run | Yrd Mat Sub Used RIF Installer . | . . . Robots Hacked . | . . . Non-combat . | . . . Combat . | . . . Robot Hacks Applied . | . . . Relay Couplers Released . | . . . Fabnet Peak Effective % . | . . . Robots Rewired . | . . . Allies Hacked . | . . . Hacks Repelled . | . . . Allies | -11 -10 -10 -------- Run | Yrd Mat Sub Total Allies . | . . . Largest Group . | . . . Highest-Rated Group . | . . . Highest-Rated Ally . | . . . Total Orders . | . . . Ally Attacks . | . . . Total Damage . | . . . Kills . | . . . Allies Corrupted . | . . . Allies Melted . | . . . Intel | -11 -10 -10 ------- Run | Yrd Mat Sub Active Infowar (turns) . | . . . Robot Analysis Total . | . . . Derelict Logs Recovered 2 | . . 2 Drone Launches . | . . . Drone Recoveries . | . . . Exploration | -11 -10 -10 ------------- Run | Yrd Mat Sub Turns Passed 1843 | 67 1151 625 Spaces Moved 1340 | 58 692 590 Core 24 | 24 . . Treads 190 | . 190 . Legs 397 | 34 363 . Wheels 729 | . 139 590 Hover . | . . . Flight . | . . . Fastest Speed 50 | 50 80 80 Average Speed 106 | 91 124 86 Slowest Speed 160 | 120 160 105 Overloaded Moves . | . . . Propulsion Burnouts . | . . . Robots Hopped . | . . . Potential Cave-ins . | . . . Cave-ins Triggered . | . . . Exploration Rate (%) 49 | 3 97 47 Regions Visited 2 Branch Regions 1 Pre-discovered Areas 2 | . . 2 Known Exits Taken . | . . . Unknown Exits Taken 2 | 1 1 . Scrap Searched 3 | . . 3 Spaces Dug 1 | . . 1 Terrain Destroyed 1 | . . 1 Melee . | . . . Projectile 1 | . . 1 AOE . | . . . Terrain Rammed . | . . . Walls Destroyed . | . . . Machines Disabled . | . . . Actions | -11 -10 -10 --------- Run | Yrd Mat Sub Total 1579 | 69 859 651 Wait 95 | . 76 19 Move 1338 | 57 691 590 Hop . | . . . Pick Up 19 | 6 9 4 Fast Attach 11 | 6 4 1 Attach 7 | . 3 4 Detach 1 | . . 1 Swap 5 | . 5 . Drop 11 | . 8 3 Fire 91 | . 62 29 Melee . | . . . Ram . | . . . Kick 1 | . 1 . Crush . | . . . Escape Stasis . | . . . Rewire . | . . . Trap . | . . . Miscellaneous . | . . . Route ------- -11/Scrapyard -10/Materials (discovered 6 exits: [*Mat x3] / [*Min x2] / *Sub) -10/Subcaves (discovered 3 exits: [*Mat x2] / [Scr]) History --------- Turn | Location | Event 20 | -11/Scrapyard | Discovered new exit (range 16) 68 | -11/Scrapyard | Entered Materials 265 | -10/Materials | Discovered new exit (range 15) 309 | -10/Materials | Build established: Mutant 364 | -10/Materials | Discovered new exit (range 13) 568 | -10/Materials | Derelicts attacked the area 688 | -10/Materials | Discovered new exit (range 3) 1041 | -10/Materials | Discovered new exit (range 10) 1107 | -10/Materials | Discovered new exit (range 15) 1151 | -10/Materials | Discovered new exit (range 16) 1219 | -10/Materials | Entered Subcaves 1220 | -10/Subcaves | Approached by a straggling Scientist 1299 | -10/Subcaves | Learned location of Storage (-9) 1490 | -10/Subcaves | Core integrity fell below 50% 1536 | -10/Subcaves | Discovered new exit (range 7) 1538 | -10/Subcaves | Learned Materials emergency access door positions 1546 | -10/Subcaves | A swath of the cavern ceiling suddenly collapsed 1596 | -10/Subcaves | Learned location of Zion (-7) 1596 | -10/Subcaves | Met a Zionite searching for "candidates" 1788 | -10/Subcaves | Core integrity fell below 20% 1799 | -10/Subcaves | Visited Clippyterm 1802 | -10/Subcaves | Learned Factory stockpile data 1802 | -10/Subcaves | Learned Factory garrison access intel 1830 | -10/Subcaves | Shifting Twisted Machinery released Mak. Light Armor Plating 1837 | -10/Subcaves | Lost 5 parts (1p1n3w) 1840 | -10/Subcaves | Shifting Twisted Machinery released Barrage Gun 1842 | -10/Subcaves | Discovered new exit (range 14) 1844 | -10/Subcaves | Destroyed by IV-DH7(R) with Subdweller Laser Last Messages --------------- reappropriating Complex 0b10 components, would you like help? Data stored: Factory stockpile data. >>Record "Tag" It looks like you don't want to be "it," would you like help? Data stored: Factory garrison access intel. >>Record! "01-MTF" It looks like you're after the notorious thief from 0b1. I don't know where they are, but my data indicates that someone they're looking for is frequently seen in Scraptown. 01806_ Wheel destroyed. 01825_ System corrupted: Heat flow error (+276). Mak. Light Armor Plating falls loose from the Twisted Machinery. 01836_ Acquired Mak. Light Armor Plating. Barrage Gun falls loose from the Twisted Machinery. 01842_ EXIT=FOUND Map ----- +----------------------------------------------------+ | ????????????????????????????# #??????????????? | | ????????????????????????????# ##??##??????????? | | ????????????????????????????## ##?? ##?????????? | | ????????????????????????????#"" #? #?????????? | | ????????????????????????????# "## #???????????? | | ???????????????????????####### " ##??????????? | | ???????????????????????# #??????????? | | #######????????????????## #?????????? | | #"""""#?????????????????# ## #?????????? | | #""X""#????####?????????####### ##?????????? | | #" "#???## ##??###?###?????## ##??????????? | | ### ####?## #### ### ##??????# ##???????????? | | ?## ## ### #???????####????????????? | | ## ## ##?????##???????????????? | | # #???? ###?????????????? | | ##?? #?????????????? | | # "## #?????????????? | | # # ### "" #??????????????? | | # ## ### ## ###R "" ###??????????????? | | ### #### ## ##?# ##""###????????????????? | | ??## ## # % ##?## ####??????????????????? | | ??# % #### ##?????????????????????? | | ?## #??????????????????????? | | ?# # # #### "" ##?????????????????????? | | ?# ### #??## ######"""?????????????? | | ## #?#### ???### @ " "#?????????????? | | # ##????# ????## "" #??????????????? | | % #????? ?????## #??????????????? | | %&! #????# ??????[ #?????????????? | | ## #???? ?????" ###?????????????? | | !######??? ?????""" "" #???????????????? | | #???????? ????### ??????????????? | | #####???# ???????